fUST/lending_fUST_20241114
["ID","MTS","AMOUNT","RATE_DAILY","PERIOD"]
[342174440,1731532241875,-560.48,0.00028767,4]
[342174441,1731532241885,-500.0,0.00028767,4]
[342174442,1731532241894,-354.22494051,0.00028767,4]
[342174443,1731532241903,-500.0,0.00028767,4]
[342174444,1731532241912,-5692.77,0.00028767,4]
[342174445,1731532241922,-500.0,0.00028767,4]
[342174446,1731532241931,-500.0,0.00028767,4]
[342174447,1731532241946,-500.0,0.00028767,4]
[342174448,1731532241955,-500.0,0.00028767,4]
[342174449,1731532241965,-500.0,0.00028767,4]
[342174450,1731532241975,-562.33,0.00028767,4]
[342174451,1731532241985,-500.0,0.00028767,4]
[342174452,1731532241994,-500.0,0.00028767,4]
[342174453,1731532242004,-500.0,0.00028767,4]
[342174454,1731532242015,-500.0,0.00028767,4]
[342174455,1731532242024,-500.0,0.00028767,4]
[342174456,1731532242033,-500.0,0.00028767,4]
[342174457,1731532242042,-1018.28,0.00028767,4]
[342174458,1731532242052,-500.0,0.00028767,4]
[342174459,1731532242062,-608.18,0.00028767,4]
[342174460,1731532242071,-500.0,0.00028767,4]
[342174461,1731532242084,-500.0,0.00028767,4]
[342174462,1731532242094,-500.0,0.00028767,4]
[342174463,1731532242103,-500.0,0.00028767,4]
[342174464,1731532242113,-500.0,0.00028767,4]
[342174465,1731532242122,-500.0,0.00028767,4]
[342174466,1731532242132,-1499.76,0.00028767,4]
[342174467,1731532242141,-348.23077697,0.00028767,4]
[342174468,1731532242150,-243.8837,0.00028767,4]
[342174469,1731532242159,-1789.42,0.00028767,4]
[342174470,1731532242169,-169.91246907,0.00028767,4]
[342174471,1731532242178,-500.0,0.00028767,4]
[342174472,1731532242188,-587.86845581,0.00028767,4]
[342174473,1731532242206,-1157.5,0.00028767,4]
[342174474,1731532242216,-500.0,0.00028767,4]
[342174475,1731532242226,-500.0,0.00028767,4]
[342174476,1731532242236,-500.0,0.00028767,4]
[342174477,1731532242245,-500.0,0.00028767,4]
[342174478,1731532242255,-500.0,0.00028767,4]
[342174479,1731532242265,-500.0,0.00028767,4]
[342174480,1731532242274,-2063.36,0.00028767,4]
[342174481,1731532242284,-500.0,0.00028767,4]
[342174482,1731532242294,-994.42,0.00028767,4]
[342174483,1731532242303,-500.0,0.00028767,4]
[342174484,1731532242312,-500.0,0.00028767,4]
[342174485,1731532242321,-500.0,0.00028767,4]
[342174486,1731532242331,-500.0,0.00028767,4]
[342174487,1731532242340,-500.0,0.00028767,4]
[342174488,1731532242349,-500.0,0.00028767,4]
[342174489,1731532242358,-952.72,0.00028767,4]
[342174490,1731532242367,-576.71,0.00028767,4]
[342174491,1731532242376,-506.82,0.00028767,4]
[342174492,1731532242386,-386.0,0.00028767,2]
[342174493,1731532242396,-1000.0,0.00028813,2]
[342174494,1731532242406,-270.85091353,0.00028827,2]
[342174495,1731532242416,-1000.0,0.00028842,2]
[342174496,1731532242427,-151.0,0.00028942,7]
[342174497,1731532242445,-270.85091353,0.00028998,2]
[342174498,1731532242455,-300.0,0.00029,2]
[342174499,1731532242465,-2000.0,0.00029,4]
[342174500,1731532242475,-10000.0,0.00029,120]
[342174501,1731532242485,-151.0,0.00029,120]
[342174502,1731532242495,-151.0,0.00029,7]
[342174503,1731532242504,-151.0,0.00029,7]
[342174504,1731532242514,-151.0,0.00029,7]
[342174505,1731532242524,-151.0,0.00029,7]
[342174506,1731532242534,-600.0,0.00029003,2]
[342174507,1731532242544,-500.0,0.00029041,4]
[342174509,1731532242554,-500.0,0.00029041,4]
[342174510,1731532242564,-151.0,0.00029041,2]
[342174511,1731532242575,-151.0,0.00029041,7]
[342174512,1731532242586,-151.0,0.00029041,7]
[342174513,1731532242597,-157.793448,0.00029041,7]
[342174514,1731532242608,-500.0,0.00029041,4]
[342174515,1731532242618,-151.0,0.00029041,7]
[342174516,1731532242628,-151.0,0.00029041,7]
[342174518,1731532242638,-500.0,0.00029041,4]
[342174519,1731532242649,-500.0,0.00029041,4]
[342174520,1731532242659,-151.0,0.00029041,7]
[342174521,1731532242669,-151.0,0.00029041,7]
[342174522,1731532242679,-215.10658074,0.00029041,4]
[342174523,1731532242695,-500.0,0.00029041,4]
[342174524,1731532242706,-500.0,0.00029041,4]
[342174525,1731532242716,-735.33,0.00029041,4]
[342174526,1731532242727,-500.0,0.00029041,4]
[342174527,1731532242736,-500.0,0.00029041,4]
[342174528,1731532242747,-500.0,0.00029041,4]
[342174529,1731532242758,-971.59,0.00029041,4]
[342174530,1731532242769,-500.0,0.00029041,4]
[342174532,1731532242780,-759.04,0.00029041,4]
[342174533,1731532242791,-500.0,0.00029041,4]
[342174534,1731532242801,-500.0,0.00029041,4]
[342174535,1731532242813,-500.0,0.00029041,4]
[342174536,1731532242824,-500.0,0.00029041,4]
[342174537,1731532242835,-500.0,0.00029041,4]
[342174538,1731532242847,-151.0,0.00029041,7]
[342174539,1731532242857,-151.0,0.00029041,7]
[342174540,1731532242868,-401.25645601,0.00029041,4]
[342174541,1731532242878,-500.0,0.00029041,4]
[342174542,1731532242888,-500.0,0.00029041,4]
[342174543,1731532242898,-500.0,0.00029041,4]
[342174544,1731532242908,-560.48,0.00029041,4]
[342174545,1731532242917,-500.0,0.00029041,4]
[342174546,1731532242927,-151.0,0.00029041,7]
[342174547,1731532242937,-5692.77,0.00029041,4]
[342174548,1731532242950,-500.0,0.00029041,4]
[342174549,1731532242960,-500.0,0.00029041,4]
[342174550,1731532242970,-500.0,0.00029041,4]
[342174551,1731532242979,-500.0,0.00029041,4]
[342174552,1731532242989,-500.0,0.00029041,4]
[342174553,1731532242999,-562.33,0.00029041,4]
[342174554,1731532243011,-151.0,0.00029041,7]
[342174555,1731532243022,-500.0,0.00029041,4]
[342174556,1731532243032,-151.0,0.00029041,7]
[342174557,1731532243042,-500.0,0.00029041,4]
[342174558,1731532243052,-500.0,0.00029041,4]
[342174559,1731532243061,-151.0,0.00029041,7]
[342174560,1731532243071,-500.0,0.00029041,4]
[342174561,1731532243081,-500.0,0.00029041,4]
[342174563,1731532243090,-500.0,0.00029041,4]
[342174564,1731532243100,-1018.28,0.00029041,4]
[342174565,1731532243109,-608.18,0.00029041,4]
[342174566,1731532243119,-408.89208198,0.00029041,4]
[342174567,1731532243128,-500.0,0.00029041,4]
[342174568,1731532243137,-500.0,0.00029041,4]
[342174569,1731532243146,-175.384822,0.00029041,7]
[342174570,1731532243155,-500.0,0.00029041,4]
[342174571,1731532243165,-500.0,0.00029041,4]
[342174573,1731532243175,-1499.76,0.00029041,4]
[342174575,1731532243184,-175.384822,0.00029041,7]
[342174577,1731532243197,-1789.42,0.00029041,4]
[342174579,1731532243207,-151.0,0.00029041,7]
[342174581,1731532243216,-500.0,0.00029041,4]
[342174582,1731532243225,-1157.5,0.00029041,4]
[342174584,1731532243235,-500.0,0.00029041,4]
[342174585,1731532243244,-500.0,0.00029041,4]
[342174587,1731532243253,-500.0,0.00029041,4]
[342174588,1731532243263,-151.0,0.00029041,7]
[342174590,1731532243273,-500.0,0.00029041,4]
[342174592,1731532243282,-151.0,0.00029041,7]
[342174596,1731532243292,-151.0,0.00029041,7]
[342174599,1731532243301,-500.0,0.00029041,4]
[342174601,1731532243311,-500.0,0.00029041,4]
[342174603,1731532243320,-2063.36,0.00029041,4]
[342174604,1731532243329,-500.0,0.00029041,4]
[342174605,1731532243338,-994.42,0.00029041,4]
[342174606,1731532243347,-500.0,0.00029041,4]
[342174607,1731532243355,-500.0,0.00029041,4]
[342174609,1731532243365,-500.0,0.00029041,4]
[342174611,1731532243374,-500.0,0.00029041,4]
[342174612,1731532243382,-500.0,0.00029041,4]
[342174614,1731532243391,-500.0,0.00029041,4]
[342174616,1731532243400,-952.72,0.00029041,4]
[342174617,1731532243409,-576.71,0.00029041,4]
[342174618,1731532243418,-506.82,0.00029041,4]
[342174619,1731532243427,-151.0,0.00029041,7]
[342174620,1731532243436,-500.0,0.00029041,11]
[342174621,1731532243448,-501.47709983,0.00029134,11]
[342174623,1731532243457,-153.374,0.0002916,4]
[342174625,1731532243466,-270.85091353,0.00029168,2]
[342174626,1731532243475,-153.0,0.00029218,2]
[342174627,1731532243484,-153.0,0.00029218,2]
[342174628,1731532243493,-153.0,0.00029218,2]
[342174629,1731532243501,-153.0,0.00029218,2]
[342174630,1731532243510,-153.0,0.00029218,2]
[342174631,1731532243519,-153.0,0.00029218,2]
[342174632,1731532243528,-153.0,0.00029218,2]
[342174633,1731532243537,-153.0,0.00029218,2]
[342174634,1731532243546,-153.0,0.00029218,2]
[342174635,1731532243556,-153.0,0.00029218,2]
[342174636,1731532243565,-1500.0,0.00029222,5]
[342174637,1731532243574,-500.0,0.00029315,4]
[342174638,1731532243583,-500.0,0.00029315,4]
[342174639,1731532243592,-151.0,0.00029315,7]
[342174640,1731532243601,-500.0,0.00029315,4]
[342174642,1731532243610,-500.0,0.00029315,4]
[342174644,1731532243620,-500.0,0.00029315,4]
[342174645,1731532243629,-157.287643,0.00029315,7]
[342174646,1731532243639,-151.0,0.00029315,7]
[342174647,1731532243649,-198.397416,0.00029315,7]
[342174648,1731532243659,-500.0,0.00029315,4]
[342174649,1731532243669,-192.22661648,0.00029315,4]
[342174650,1731532243678,-151.0,0.00029315,7]
[342174651,1731532243687,-336.634507,0.00029315,7]
[342174652,1731532243699,-735.33,0.00029315,4]
[342174653,1731532243708,-336.634507,0.00029315,7]
[342174654,1731532243717,-500.0,0.00029315,4]
[342174655,1731532243727,-500.0,0.00029315,4]
[342174656,1731532243736,-500.0,0.00029315,4]
[342174657,1731532243746,-971.59,0.00029315,4]
[342174658,1731532243755,-500.0,0.00029315,4]
[342174659,1731532243765,-759.04,0.00029315,4]
[342174660,1731532243775,-565.22,0.00029315,4]
[342174661,1731532243785,-500.0,0.00029315,4]
[342174662,1731532243794,-500.0,0.00029315,4]
[342174663,1731532243804,-500.0,0.00029315,4]
[342174664,1731532243814,-500.0,0.00029315,4]
[342174665,1731532243823,-500.0,0.00029315,4]
[342174666,1731532243833,-500.0,0.00029315,4]
[342174667,1731532243842,-500.0,0.00029315,4]
[342174668,1731532243851,-560.48,0.00029315,4]
[342174669,1731532243860,-500.0,0.00029315,4]
[342174670,1731532243869,-5692.77,0.00029315,4]
[342174671,1731532243879,-500.0,0.00029315,4]
[342174672,1731532243888,-500.0,0.00029315,4]
[342174673,1731532243898,-500.0,0.00029315,4]
[342174674,1731532243907,-500.0,0.00029315,4]
[342174675,1731532243916,-562.33,0.00029315,4]
[342174676,1731532243925,-523.33,0.00029315,4]
[342174677,1731532243934,-500.0,0.00029315,4]
[342174678,1731532243950,-500.0,0.00029315,4]
[342174679,1731532244038,-500.0,0.00029315,4]
[342174680,1731532244056,-500.0,0.00029315,4]
[342174681,1731532244066,-500.0,0.00029315,4]
[342174682,1731532244075,-1018.28,0.00029315,4]
[342174683,1731532244086,-608.18,0.00029315,4]
[342174684,1731532244096,-500.0,0.00029315,4]
[342174685,1731532244105,-500.0,0.00029315,4]
[342174686,1731532244114,-500.0,0.00029315,4]
[342174687,1731532244124,-500.0,0.00029315,4]
[342174688,1731532244133,-1499.76,0.00029315,4]
[342174689,1731532244143,-1789.42,0.00029315,4]
[342174690,1731532244152,-500.0,0.00029315,4]
[342174691,1731532244161,-1157.5,0.00029315,4]
[342174692,1731532244171,-637.78832384,0.00029315,4]
[342174693,1731532244180,-500.0,0.00029315,4]
[342174694,1731532244193,-500.0,0.00029315,4]
[342174695,1731532244202,-500.0,0.00029315,4]
[342174696,1731532244212,-500.0,0.00029315,4]
[342174697,1731532244221,-2063.36,0.00029315,4]
[342174698,1731532244231,-500.0,0.00029315,4]
[342174699,1731532244240,-994.42,0.00029315,4]
[342174700,1731532244249,-500.0,0.00029315,4]
[342174701,1731532244259,-500.0,0.00029315,4]
[342174702,1731532244269,-500.0,0.00029315,4]
[342174703,1731532244278,-500.0,0.00029315,4]
[342174704,1731532244288,-500.0,0.00029315,4]
[342174705,1731532244298,-500.0,0.00029315,4]
[342174706,1731532244308,-952.72,0.00029315,4]
[342174707,1731532244318,-576.71,0.00029315,4]
[342174708,1731532244328,-506.82,0.00029315,4]
[342174709,1731532244338,-270.85091353,0.00029339,2]
[342174710,1731532244348,-1140.99673304,0.00029477,2]
[342174711,1731532244358,-1140.99673304,0.00029492,2]
[342174712,1731532244368,-1453.51658513,0.00029498,10]
[342174713,1731532244378,-1140.99673304,0.00029499,2]
[342174714,1731532244387,-2000.0,0.000295,7]
[342174715,1731532244396,-270.85091353,0.0002951,2]
[342174716,1731532244406,-225.21973324,0.00029522,5]
[342174717,1731532244415,-150.0,0.0002954,2]
[342174718,1731532244426,-151.0,0.00029571,7]
[342174719,1731532244436,-500.0,0.00029589,4]
[342174720,1731532244452,-701.23490259,0.00029589,4]
[342174721,1731532244462,-151.0,0.00029589,7]
[342174722,1731532244471,-151.0,0.00029589,7]
[342174723,1731532244480,-500.0,0.00029589,10]
[342174724,1731532244489,-454.64498304,0.00029589,4]
[342174725,1731532244499,-500.0,0.00029589,4]
[342174726,1731532244508,-500.0,0.00029589,4]
[342174727,1731532244518,-735.33,0.00029589,4]
[342174728,1731532244527,-192.03,0.00029589,4]
[342174729,1731532244536,-500.0,0.00029589,4]
[342174730,1731532244545,-500.0,0.00029589,4]
[342174731,1731532244555,-971.59,0.00029589,4]
[342174732,1731532244564,-500.0,0.00029589,4]
[342174733,1731532244574,-759.04,0.00029589,4]
[342174734,1731532244583,-151.0,0.00029589,7]
[342174735,1731532244592,-413.94696296,0.00029589,4]
[342174736,1731532244602,-500.0,0.00029589,4]
[342174737,1731532244613,-500.0,0.00029589,4]
[342174738,1731532244623,-151.0,0.00029589,7]
[342174739,1731532244633,-278.16,0.00029589,4]
[342174740,1731532244642,-151.0,0.00029589,7]
[342174741,1731532244651,-151.0,0.00029589,7]
[342174742,1731532244660,-151.0,0.00029589,7]
[342174743,1731532244670,-500.0,0.00029589,4]
[342174744,1731532244680,-500.0,0.00029589,4]
[342174745,1731532244693,-500.0,0.00029589,4]
[342174746,1731532244703,-560.48,0.00029589,4]
[342174747,1731532244713,-161.22058711,0.00029589,4]
[342174748,1731532244722,-151.0,0.00029589,7]
[342174749,1731532244732,-5692.77,0.00029589,4]
[342174750,1731532244742,-500.0,0.00029589,4]
[342174751,1731532244752,-500.0,0.00029589,4]
[342174752,1731532244762,-500.0,0.00029589,4]
[342174753,1731532244772,-151.0,0.00029589,7]
[342174754,1731532244782,-562.33,0.00029589,4]
[342174755,1731532244791,-500.0,0.00029589,4]
[342174756,1731532244801,-500.0,0.00029589,4]
[342174757,1731532244811,-500.0,0.00029589,4]
[342174758,1731532244820,-500.0,0.00029589,4]
[342174759,1731532244829,-500.0,0.00029589,4]
[342174760,1731532244838,-1018.28,0.00029589,4]
[342174761,1731532244847,-608.18,0.00029589,4]
[342174762,1731532244857,-500.0,0.00029589,4]
[342174763,1731532244867,-500.0,0.00029589,4]
[342174764,1731532244876,-175.384822,0.00029589,7]
[342174765,1731532244889,-500.0,0.00029589,4]
[342174766,1731532244902,-500.0,0.00029589,4]
[342174767,1731532244912,-1499.76,0.00029589,4]
[342174768,1731532244923,-175.384822,0.00029589,7]
[342174769,1731532244932,-1789.42,0.00029589,4]
[342174770,1731532244947,-151.0,0.00029589,7]
[342174771,1731532244956,-500.0,0.00029589,4]
[342174772,1731532244966,-1157.5,0.00029589,4]
[342174773,1731532244977,-500.0,0.00029589,4]
[342174774,1731532244988,-151.0,0.00029589,7]
[342174775,1731532244999,-151.0,0.00029589,7]
[342174776,1731532245012,-151.0,0.00029589,7]
[342174777,1731532245023,-500.0,0.00029589,4]
[342174778,1731532245034,-500.0,0.00029589,4]
[342174779,1731532245043,-2063.36,0.00029589,4]
[342174780,1731532245055,-428.77670592,0.00029589,4]
[342174781,1731532245064,-994.42,0.00029589,4]
[342174782,1731532245075,-500.0,0.00029589,4]
[342174783,1731532245085,-500.0,0.00029589,4]
[342174784,1731532245094,-500.0,0.00029589,4]
[342174785,1731532245104,-500.0,0.00029589,4]
[342174786,1731532245113,-500.0,0.00029589,4]
[342174787,1731532245122,-500.0,0.00029589,4]
[342174788,1731532245132,-952.72,0.00029589,4]
[342174789,1731532245142,-576.71,0.00029589,4]
[342174790,1731532245152,-151.0,0.00029589,7]
[342174791,1731532245162,-506.82,0.00029589,4]
[342174792,1731532245171,-270.85091353,0.00029681,2]
[342174793,1731532245181,-228.81,0.00029794,7]
[342174794,1731532245195,-275.06,0.00029794,7]
[342174795,1731532245206,-1452.0,0.00029797,21]
[342174796,1731532245216,-173.39920412,0.00029799,2]
[342174797,1731532245226,-856.91481,0.000298,120]
[342174798,1731532245236,-270.85091353,0.00029851,2]
[342174799,1731532245245,-350.11,0.00029862,2]
[342174800,1731532245254,-500.0,0.00029863,4]
[342174801,1731532245264,-151.0,0.00029863,7]
[342174802,1731532245274,-151.0,0.00029863,7]
[342174803,1731532245283,-242.413248,0.00029863,7]
[342174804,1731532245292,-500.0,0.00029863,4]
[342174805,1731532245302,-151.0,0.00029863,7]
[342174806,1731532245312,-151.0,0.00029863,7]
[342174807,1731532245321,-151.0,0.00029863,7]
[342174808,1731532245331,-500.0,0.00029863,4]
[342174809,1731532245340,-151.0,0.00029863,7]
[342174810,1731532245350,-336.634507,0.00029863,7]
[342174811,1731532245359,-735.33,0.00029863,4]
[342174812,1731532245368,-336.634507,0.00029863,7]
[342174813,1731532245377,-500.0,0.00029863,4]
[342174814,1731532245386,-500.0,0.00029863,4]
[342174815,1731532245395,-971.59,0.00029863,4]
[342174816,1731532245404,-330.62,0.00029863,4]
[342174817,1731532245413,-759.04,0.00029863,4]
[342174818,1731532245422,-500.0,0.00029863,4]
[342174819,1731532245431,-535.31138978,0.00029863,4]
[342174820,1731532245444,-500.0,0.00029863,4]
[342174821,1731532245453,-550.32074158,0.00029863,4]
[342174822,1731532245462,-560.48,0.00029863,4]
[342174823,1731532245471,-5692.77,0.00029863,4]
[342174824,1731532245481,-486.40178846,0.00029863,4]
[342174825,1731532245492,-500.0,0.00029863,4]
[342174826,1731532245502,-500.0,0.00029863,4]
[342174827,1731532245511,-562.33,0.00029863,4]
[342174828,1731532245521,-500.0,0.00029863,4]
[342174829,1731532245530,-151.0,0.00029863,7]
[342174830,1731532245539,-500.0,0.00029863,4]
[342174831,1731532245549,-500.0,0.00029863,4]
[342174832,1731532245558,-500.0,0.00029863,4]
[342174833,1731532245567,-1018.28,0.00029863,4]
[342174834,1731532245577,-608.18,0.00029863,4]
[342174835,1731532245587,-601.31,0.00029863,4]
[342174836,1731532245596,-500.0,0.00029863,4]
[342174837,1731532245606,-500.0,0.00029863,4]
[342174838,1731532245615,-500.0,0.00029863,4]
[342174839,1731532245624,-1499.76,0.00029863,4]
[342174840,1731532245633,-1789.42,0.00029863,4]
[342174841,1731532245642,-500.0,0.00029863,4]
[342174842,1731532245652,-1157.5,0.00029863,4]
[342174843,1731532245661,-500.0,0.00029863,4]
[342174844,1731532245671,-283.61,0.00029863,4]
[342174845,1731532245681,-500.0,0.00029863,4]
[342174846,1731532245694,-2063.36,0.00029863,4]
[342174847,1731532245705,-994.42,0.00029863,4]
[342174848,1731532245715,-500.0,0.00029863,4]
[342174849,1731532245724,-500.0,0.00029863,4]
[342174850,1731532245734,-500.0,0.00029863,4]
[342174851,1731532245744,-500.0,0.00029863,4]
[342174852,1731532245753,-500.0,0.00029863,4]
[342174853,1731532245763,-500.0,0.00029863,4]
[342174854,1731532245773,-952.72,0.00029863,4]
[342174855,1731532245783,-576.71,0.00029863,4]
[342174856,1731532245792,-506.82,0.00029863,4]
[342174857,1731532245801,-6366.64684311,0.00029867,26]
[342174858,1731532245811,-1473.57418842,0.00029867,26]
[342174859,1731532245828,-846.16267626,0.00029867,26]
[342174860,1731532245839,-424.30184868,0.00029867,26]
[342174861,1731532245850,-2255.96128664,0.00029867,26]
[342174862,1731532245860,-3729.35805101,0.00029867,22]
[342174863,1731532245871,-944.7308529,0.00029867,22]
[342174864,1731532245883,-325.91109609,0.00029867,22]
[342174865,1731532245894,-5025.82853618,0.00029894,27]
[342174866,1731532245903,-5000.0,0.00029894,28]
[342174867,1731532245913,-5000.0,0.00029894,25]
[342174868,1731532245923,-5000.0,0.00029894,24]
[342174869,1731532245932,-5000.0,0.00029894,22]
[342174870,1731532245947,-6872.45148658,0.00029894,27]
[342174871,1731532245960,-151.0,0.00029894,7]
[342174872,1731532245969,-151.0,0.00029894,7]
[342174873,1731532245979,-206.99097649,0.000299,5]
[342174874,1731532245988,-500.0,0.00029973,2]
[342174875,1731532245998,-153.38,0.00029977,120]
[342174876,1731532246011,-300.0,0.0003,2]
[342174877,1731532246021,-200.0,0.0003,120]
[342174879,1731532246030,-161.81562305,0.0003,120]
[342174880,1731532246040,-151.0,0.0003,120]
[342174881,1731532246050,-300.0,0.0003,120]
[342174883,1731532246060,-282.5825,0.0003,2]
[342174884,1731532246069,-302.9394212,0.0003,2]
[342174887,1731532246160,-273.0,0.0003,2]
[342174888,1731532246171,-302.9394212,0.0003,2]
[342174889,1731532246181,-270.85091353,0.00030022,2]
[342174890,1731532246193,-500.0,0.00030052,2]
[342174892,1731532246203,-53581.94918747,0.00030099,2]
[342174895,1731532246261,-362.97677171,0.00028197,15]
[342174896,1731532246273,-1348.77732829,0.00028197,15]
[342174897,1731532246283,-296.71439,0.00028219,7]
[342174899,1731532246292,-173.34,0.00028757,3]
[342174902,1731532246301,-19106.61846253,0.00030099,2]
[342174905,1731532246311,-151.0,0.00030099,7]
[342174908,1731532246320,-151.0,0.00030099,7]
[342174909,1731532246330,-151.0,0.00030099,7]
[342174912,1731532246339,-151.0,0.00030099,7]
[342174914,1731532246348,-151.0,0.00030099,7]
[342174916,1731532246358,-151.0,0.00030099,7]
[342174918,1731532246367,-151.0,0.00030099,7]
[342174919,1731532246376,-336.634507,0.00030099,7]
[342174921,1731532246385,-336.634507,0.00030099,7]
[342174923,1731532246394,-151.0,0.00030099,7]
[342174924,1731532246404,-220.481264,0.00030099,7]
[342174926,1731532246414,-151.0,0.00030099,7]
[342174927,1731532246423,-211.86528,0.00030099,7]
[342174928,1731532246432,-175.384822,0.00030099,7]
[342174929,1731532246445,-175.384822,0.00030099,7]
[342174930,1731532246455,-151.0,0.00030099,7]
[342174931,1731532246464,-201.179062,0.00030099,7]
[342174932,1731532246473,-151.0,0.00030099,7]
[342174933,1731532246483,-528.0,0.000301,2]
[342174935,1731532246492,-150.0,0.00030106,120]
[342174936,1731532246501,-346.68,0.00030127,3]
[342174937,1731532246511,-500.0,0.00030132,2]
[342174938,1731532246522,-500.0,0.00030136,4]
[342174939,1731532246531,-735.33,0.00030136,4]
[342174940,1731532246540,-500.0,0.00030136,4]
[342174941,1731532246549,-500.0,0.00030136,4]
[342174942,1731532246558,-971.59,0.00030136,4]
[342174943,1731532246567,-759.04,0.00030136,4]
[342174944,1731532246577,-151.0,0.00030136,7]
[342174945,1731532246586,-151.0,0.00030136,7]
[342174946,1731532246595,-500.0,0.00030136,4]
[342174947,1731532246605,-500.0,0.00030136,120]
[342174948,1731532246615,-500.0,0.00030136,120]
[342174949,1731532246624,-500.0,0.00030136,120]
[342174950,1731532246634,-500.0,0.00030136,120]
[342174952,1731532246643,-500.0,0.00030136,120]
[342174953,1731532246652,-500.0,0.00030136,120]
[342174955,1731532246661,-500.0,0.00030136,120]
[342174957,1731532246671,-500.0,0.00030136,120]
[342174958,1731532246680,-378.73112852,0.00030136,120]
[342174959,1731532246693,-560.48,0.00030136,4]
[342174960,1731532246702,-5692.77,0.00030136,4]
[342174961,1731532246711,-500.0,0.00030136,4]
[342174962,1731532246720,-500.0,0.00030136,4]
[342174963,1731532246730,-562.33,0.00030136,4]
[342174964,1731532246739,-500.0,0.00030136,4]
[342174965,1731532246748,-500.0,0.00030136,4]
[342174966,1731532246757,-500.0,0.00030136,4]
[342174967,1731532246766,-208.17277621,0.00030136,4]
[342174968,1731532246774,-1018.28,0.00030136,4]
[342174969,1731532246783,-608.18,0.00030136,4]
[342174970,1731532246793,-500.0,0.00030136,4]
[342174971,1731532246802,-500.0,0.00030136,4]
[342174972,1731532246811,-500.0,0.00030136,4]
[342174973,1731532246821,-1499.76,0.00030136,4]
[342174974,1731532246830,-1789.42,0.00030136,4]
[342174975,1731532246839,-266.26362924,0.00030136,4]
[342174976,1731532246847,-1157.5,0.00030136,4]
[342174977,1731532246856,-500.0,0.00030136,4]
[342174978,1731532246865,-500.0,0.00030136,4]
[342174979,1731532246874,-2063.36,0.00030136,4]
[342174980,1731532246884,-994.42,0.00030136,4]
[342174981,1731532246892,-500.0,0.00030136,4]
[342174982,1731532246901,-500.0,0.00030136,4]
[342174983,1731532246910,-500.0,0.00030136,4]
[342174984,1731532246920,-500.0,0.00030136,4]
[342174985,1731532246930,-500.0,0.00030136,4]
[342174986,1731532246941,-317.84967441,0.00030136,4]
[342174987,1731532246951,-952.72,0.00030136,4]
[342174988,1731532246960,-576.71,0.00030136,4]
[342174989,1731532246969,-506.82,0.00030136,4]
[342174990,1731532246978,-500.0,0.00030137,4]
[342174991,1731532246987,-500.0,0.00030137,4]
[342174992,1731532246998,-150.05,0.00030137,2]
[342174993,1731532247010,-270.85091353,0.00030193,2]